bitfinex/quotes_BTCUSD_20241205
["timestamp","ask_amount","ask_price","bid_price","bid_amount"]
[1733412161672,0.78229455,102720.0,102710.0,0.02250055]
[1733412162333,0.39229927,102720.0,102710.0,0.02250055]
[1733412162565,0.09967605,102720.0,102710.0,0.00345648]
[1733412162781,0.14961309,102720.0,102710.0,0.10081248]
[1733412162993,0.14961309,102720.0,102710.0,0.09981248]
[1733412163221,0.15261309,102720.0,102710.0,0.09881248]
[1733412163641,0.005,102720.0,102710.0,0.09881248]
[1733412163851,0.005,102720.0,102710.0,0.27806213]
[1733412164099,0.14961309,102740.0,102720.0,0.194694]
[1733412164310,0.04961309,102730.0,102720.0,0.194694]
[1733412164558,0.04961309,102730.0,102710.0,0.44003239]
[1733412164779,0.04961309,102730.0,102720.0,0.097352]
[1733412166210,0.14961309,102730.0,102720.0,0.097352]
[1733412166717,0.14961309,102730.0,102710.0,0.26175734]
[1733412166928,0.15361309,102730.0,102710.0,0.35911334]
[1733412167150,0.34830809,102730.0,102710.0,0.11811034]
[1733412167372,0.1,102720.0,102710.0,0.02074934]
[1733412167587,0.08161308,102720.0,102710.0,0.02074934]
[1733412167813,0.27631708,102720.0,102710.0,0.02074934]
[1733412168057,0.27631708,102720.0,102710.0,0.01771904]
[1733412168291,0.08161308,102720.0,102710.0,0.01771904]
[1733412168764,0.194704,102720.0,102710.0,0.01771904]
[1733412168979,0.29438005,102720.0,102710.0,0.01771904]
[1733412169876,0.29438005,102720.0,102710.0,0.01871904]
[1733412170092,0.29438005,102720.0,102710.0,0.01971904]
[1733412170349,0.29438005,102720.0,102710.0,0.01871904]
[1733412170564,0.29438005,102720.0,102710.0,0.01771904]
[1733412170775,0.10467605,102720.0,102710.0,0.01771904]
[1733412171265,0.29938005,102720.0,102710.0,0.01771904]
[1733412171499,0.10167605,102720.0,102710.0,0.01771904]
[1733412171712,0.29638005,102720.0,102710.0,0.01771904]
[1733412171935,0.29938005,102720.0,102710.0,0.01771904]
[1733412172401,0.08161308,102710.0,102690.0,0.0676044]
[1733412172634,0.54961307,102710.0,102680.0,0.11435919]
[1733412172859,0.54961307,102710.0,102700.0,0.097366]
[1733412173070,0.54961307,102710.0,102700.0,0.097316]
[1733412173528,0.00358098,102720.0,102710.0,0.097361]
[1733412173796,0.00058098,102720.0,102710.0,0.097361]
[1733412175327,0.00358098,102720.0,102710.0,0.19703705]
[1733412175973,0.00358098,102720.0,102710.0,0.28342398]
[1733412176499,0.0017386,102730.0,102720.0,0.097352]
[1733412176718,0.0017386,102730.0,102720.0,0.19800127]
[1733412176941,0.0017386,102730.0,102720.0,0.19702805]
[1733412177160,0.0017386,102730.0,102720.0,0.28341498]
[1733412177398,0.0017386,102730.0,102720.0,0.19702805]
[1733412177634,0.001,102730.0,102720.0,0.29538005]
[1733412179590,0.002,102730.0,102720.0,0.29738005]
[1733412180250,0.001,102730.0,102720.0,0.39538005]
[1733412180467,0.1517378,102770.0,102760.0,0.097314]
[1733412182046,0.1547378,102770.0,102760.0,0.097314]
[1733412182302,0.2318378,102770.0,102740.0,0.097326]
[1733412182528,0.1,102700.0,102680.0,0.390572]
[1733412182739,2.20743875,102690.0,102680.0,0.31266]
[1733412182956,2.20743875,102690.0,102650.0,1.00030942]
[1733412182957,0.1,102670.0,102650.0,1.00030942]
[1733412183204,0.830817,102660.0,102650.0,1.00030942]
[1733412183411,2.41510212,102660.0,102650.0,1.00030942]
[1733412183700,2.58008834,102660.0,102650.0,0.79043709]
[1733412183925,0.194874,102630.0,102610.0,0.00030942]
[1733412184172,1.04546198,102630.0,102620.0,0.04985902]
[1733412184376,1.04546199,102630.0,102620.0,0.04985902]
[1733412184589,1.21714543,102630.0,102620.0,0.04985902]
[1733412184800,1.21714076,102630.0,102620.0,0.04985902]
[1733412185045,1.04532526,102630.0,102620.0,0.04985902]
[1733412185283,0.75077521,102630.0,102620.0,0.05003539]
[1733412185499,0.730874,102630.0,102620.0,0.04503539]
[1733412186701,0.75269202,102630.0,102620.0,0.04503539]
[1733412186918,0.75769202,102630.0,102620.0,0.04503539]
[1733412187168,0.91525976,102630.0,102600.0,0.0008692]
[1733412187405,0.91525976,102630.0,102410.0,4e-05]
[1733412187406,0.1442,102480.0,102410.0,4e-05]
[1733412187645,0.10097473,102470.0,102410.0,0.00097623]
[1733412187887,0.1,102410.0,102380.0,0.01905957]
[1733412188124,0.1,102410.0,102400.0,0.00058624]
[1733412188380,0.10122056,102430.0,102410.0,0.097646]
[1733412188626,0.1,102420.0,102400.0,0.00058624]
[1733412189145,0.1,102430.0,102400.0,0.11819436]
[1733412189354,0.00122066,102420.0,102400.0,0.11819436]
[1733412189586,0.19967605,102430.0,102400.0,0.11819336]
[1733412189788,0.1,102430.0,102400.0,0.11820136]
[1733412190056,0.1,102430.0,102400.0,0.02054636]
[1733412190783,0.002,102420.0,102400.0,0.12022241]
[1733412190986,0.002,102420.0,102400.0,0.21787041]
[1733412191202,0.1,102450.0,102410.0,0.09967605]
[1733412191411,0.00122013,102470.0,102440.0,0.097617]
[1733412191693,0.01442,102480.0,102440.0,0.097617]
[1733412191694,0.00122002,102480.0,102450.0,0.09809708]
[1733412191950,0.09967605,102470.0,102420.0,0.097629]
[1733412192181,0.002,102430.0,102410.0,0.097646]
[1733412192417,0.002,102430.0,102410.0,0.19732205]
[1733412192652,0.002,102430.0,102410.0,0.10016566]
[1733412192908,0.245645,102490.0,102420.0,0.09967605]
[1733412192909,0.345645,102490.0,102420.0,0.09967605]
[1733412193147,0.29556973,102480.0,102430.0,0.097626]
[1733412193389,0.295361,102380.0,102300.0,0.0193822]
[1733412193648,0.09,102330.0,102300.0,0.0193822]
[1733412193858,0.0505,102340.0,102300.0,0.0193822]
[1733412193859,0.14172194,102320.0,102300.0,0.00035354]
[1733412194079,0.00122194,102320.0,102310.0,0.097742]
[1733412194288,0.09122188,102360.0,102300.0,0.00035354]
[1733412194537,0.09122188,102360.0,102330.0,0.097722]
[1733412194778,0.09122188,102360.0,102320.0,0.00073583]
[1733412194779,0.18967605,102350.0,102320.0,0.00073583]
[1733412195013,0.09122149,102340.0,102310.0,0.00058773]
[1733412195250,0.09,102330.0,102310.0,0.00058773]
[1733412195720,0.09122164,102320.0,102310.0,0.00173583]
[1733412196192,0.10089769,102320.0,102310.0,0.00173583]
[1733412196424,0.18967605,102320.0,102310.0,0.09947783]
[1733412196684,0.18967605,102320.0,102310.0,0.00173583]
[1733412196685,0.09,102320.0,102310.0,0.00173583]
[1733412196916,0.30414105,102320.0,102310.0,0.00173583]
[1733412197411,0.65342785,102320.0,102310.0,0.00173583]
[1733412197665,0.09967605,102320.0,102310.0,0.00173583]
[1733412198156,0.1808,102370.0,102310.0,0.44843168]
[1733412198376,0.2948698,102390.0,102320.0,0.09967605]
[1733412198621,0.09967605,102360.0,102310.0,0.19740805]
[1733412198878,1.79611877,102400.0,102310.0,0.19740805]
[1733412198879,0.4585,102400.0,102350.0,0.097695]
[1733412199118,0.1,102430.0,102370.0,0.00101612]
[1733412199119,0.0012211,102390.0,102370.0,0.00101612]
[1733412199359,0.295319,102400.0,102340.0,0.3469918]
[1733412199583,0.00122132,102390.0,102350.0,0.00101612]
[1733412199828,0.1,102280.0,102200.0,0.00122314]
[1733412200059,1.0128708,102260.0,102240.0,0.23244367]
[1733412200316,0.24732191,102250.0,102240.0,0.19392265]
[1733412200545,0.296599,102250.0,102240.0,0.19392265]
[1733412200777,0.15017605,102250.0,102240.0,0.19392265]
[1733412201004,0.15139885,102250.0,102240.0,0.19392265]
[1733412201244,0.15139882,102250.0,102240.0,0.19392265]
[1733412201463,0.41312619,102250.0,102240.0,0.19392265]
[1733412201706,0.46877505,102250.0,102240.0,0.19392265]
[1733412201940,0.195637,102230.0,102220.0,0.00035354]
[1733412202175,1.55667875,102230.0,102220.0,0.00035354]
[1733412202413,0.25017605,102230.0,102220.0,0.00035354]
[1733412202641,0.02357793,102250.0,102220.0,0.00035354]
[1733412202642,0.02357793,102250.0,102230.0,0.097818]
[1733412202873,0.96306897,102260.0,102230.0,0.097809]
[1733412202874,0.6942,102260.0,102230.0,0.097809]
[1733412203123,0.79387605,102260.0,102240.0,0.3470858]
[1733412203361,0.6942,102260.0,102240.0,0.3470858]
[1733412203595,0.09967605,102250.0,102230.0,0.00057793]
[1733412203826,0.09967605,102250.0,102230.0,0.34768273]
[1733412204059,0.6942,102260.0,102230.0,0.34719901]
[1733412204309,0.6942,102260.0,102240.0,0.34738901]
[1733412204533,0.6942,102260.0,102250.0,0.097799]
[1733412204775,0.6942,102260.0,102240.0,0.54487306]
[1733412205049,0.6942,102260.0,102250.0,0.097799]
[1733412205779,0.195599,102250.0,102240.0,0.023]
[1733412206018,0.60023971,102250.0,102240.0,0.023]
[1733412206483,0.40464071,102250.0,102240.0,0.02012664]
[1733412206735,0.09967605,102250.0,102240.0,0.02012664]
[1733412207206,0.09967605,102250.0,102240.0,0.11038459]
[1733412207679,0.6942,102260.0,102240.0,0.00777065]
[1733412207680,0.62619999,102260.0,102240.0,0.00777065]
[1733412207913,0.72587604,102260.0,102240.0,0.10557765]
[1733412208151,0.09967605,102250.0,102240.0,0.00777065]
[1733412209308,0.09967605,102250.0,102240.0,0.10557965]
[1733412209763,0.62619999,102260.0,102250.0,0.08974701]
[1733412209986,0.62619999,102260.0,102250.0,0.18942306]
[1733412210463,0.17387941,102260.0,102250.0,0.18942306]
[1733412210750,0.09087844,102260.0,102250.0,0.33570091]
[1733412210978,0.0101058,102270.0,102250.0,0.95901221]
[1733412211209,0.0101058,102270.0,102260.0,0.19844267]
[1733412211446,0.0101058,102270.0,102260.0,0.19746505]
[1733412211679,0.0101058,102270.0,102260.0,0.50242971]
[1733412212163,0.15,102280.0,102270.0,0.09778]
[1733412212400,0.15,102280.0,102260.0,0.195571]
[1733412212659,0.15,102280.0,102260.0,0.097789]
[1733412212660,0.24967605,102280.0,102260.0,0.097789]
[1733412213365,0.2,102310.0,102250.0,0.0008726]
[1733412213587,0.2,102310.0,102250.0,0.0986646]
[1733412213588,0.10025427,102280.0,102250.0,0.0986646]
[1733412213861,0.10025427,102280.0,102250.0,0.18126025]
[1733412214101,0.195526,102290.0,102250.0,0.2809363]
[1733412214339,0.17847605,102280.0,102250.0,0.00057822]
[1733412214560,0.391175,102260.0,102220.0,0.097826]
[1733412214799,0.29525505,102260.0,102220.0,0.19749505]
[1733412215038,0.29525505,102260.0,102200.0,0.31681522]
[1733412215039,0.1956,102250.0,102210.0,0.097829]
[1733412215266,0.195675,102210.0,102200.0,0.0108725]
[1733412215968,0.29535105,102210.0,102200.0,0.0108725]
[1733412216216,0.29535105,102210.0,102200.0,0.00653828]
[1733412216431,0.37402015,102210.0,102200.0,0.00653828]
[1733412216656,0.29592856,102210.0,102200.0,0.00653828]
[1733412216899,0.1,102200.0,102160.0,0.00030977]
[1733412217142,0.195752,102170.0,102160.0,0.00030977]
[1733412217370,0.29542805,102170.0,102160.0,0.00030977]
[1733412217840,0.195746,102180.0,102160.0,0.00030977]
[1733412218074,0.24093,102190.0,102150.0,0.097887]
[1733412218308,0.24093,102190.0,102150.0,0.50252771]
[1733412218309,0.09967605,102190.0,102150.0,0.50252771]
[1733412218532,0.00057716,102190.0,102160.0,0.19755205]
[1733412218767,0.10025321,102190.0,102170.0,0.097875]
[1733412219003,0.10025321,102190.0,102160.0,0.097876]
[1733412219251,0.1262,102160.0,102130.0,0.00030977]
[1733412219490,0.2262,102150.0,102110.0,0.0008729]
[1733412219699,0.09967605,102140.0,102120.0,0.195679]
[1733412219956,0.09967605,102140.0,102120.0,0.097923]
[1733412220211,0.1262,102150.0,102120.0,0.097843]
[1733412220450,0.09967605,102150.0,102120.0,0.195559]
[1733412220667,0.10025286,102150.0,102120.0,0.195564]
[1733412220900,0.10025286,102150.0,102130.0,0.097913]
[1733412221150,0.15,102160.0,102140.0,0.19757805]
[1733412221380,0.1,102200.0,102140.0,0.09967605]
[1733412221597,0.09967605,102190.0,102160.0,0.097885]
[1733412221859,0.09967605,102190.0,102140.0,0.195792]
[1733412221860,0.195733,102180.0,102140.0,0.195792]
[1733412222120,0.09967605,102170.0,102150.0,0.0946503]
[1733412222825,0.39146,102190.0,102150.0,0.0946503]
[1733412223039,0.09967605,102180.0,102150.0,0.097887]
[1733412223486,0.09967605,102180.0,102150.0,0.09485567]
[1733412223707,0.33457105,102180.0,102150.0,0.19274267]
[1733412223954,0.195758,102170.0,102140.0,0.097902]
[1733412224178,0.195758,102170.0,102150.0,0.0008669]
[1733412224179,0.29543405,102170.0,102150.0,0.0008669]
[1733412224407,0.09967605,102160.0,102150.0,0.0008669]
[1733412224630,0.39544705,102160.0,102150.0,0.0008669]
[1733412224844,0.29544705,102160.0,102150.0,0.0008669]
[1733412225065,0.318758,102170.0,102150.0,0.0008669]
[1733412225289,0.039162,102180.0,102160.0,0.097885]
[1733412225524,0.13883805,102180.0,102160.0,0.097876]
[1733412225760,0.0778,102200.0,102170.0,0.097876]
[1733412226018,0.13883105,102200.0,102170.0,0.293619]
[1733412226235,0.039155,102200.0,102190.0,0.097856]
[1733412226475,0.09967605,102200.0,102170.0,0.195737]
[1733412226695,0.09967605,102200.0,102170.0,0.097868]
[1733412226934,0.09967605,102200.0,102170.0,0.195737]
[1733412226935,0.29537105,102200.0,102170.0,0.195737]
[1733412227164,0.430524,102210.0,102170.0,0.195737]
[1733412227165,0.23483,102210.0,102180.0,0.097863]
[1733412227356,0.23483,102210.0,102190.0,0.097856]
[1733412227640,0.13883005,102210.0,102190.0,0.097856]
[1733412227876,0.195657,102220.0,102170.0,0.09985246]
[1733412228100,0.09967605,102210.0,102180.0,0.195718]
[1733412228322,0.09967605,102220.0,102190.0,0.097856]
[1733412228546,0.09967605,102220.0,102200.0,0.097847]
[1733412228773,0.09967605,102220.0,102190.0,0.097856]
[1733412228774,0.09967605,102220.0,102190.0,0.09785]
[1733412228988,0.29533205,102220.0,102190.0,0.09785]
[1733412229211,0.29533205,102220.0,102190.0,0.195699]
[1733412229433,0.29535105,102210.0,102190.0,0.097849]
[1733412229651,0.29535105,102210.0,102180.0,0.195718]
[1733412229924,0.241721,102240.0,102210.0,0.09783]
[1733412230163,0.34139705,102240.0,102200.0,0.09784]
[1733412230395,0.09967605,102230.0,102180.0,0.097859]
[1733412230611,0.195673,102220.0,102180.0,0.09967605]
[1733412230868,0.09967605,102220.0,102180.0,0.09967605]
[1733412231076,0.0461,102240.0,102210.0,0.097837]
[1733412231301,0.29529605,102240.0,102210.0,0.195674]
[1733412231557,0.234747,102250.0,102220.0,0.097827]
[1733412231782,0.13881905,102250.0,102220.0,0.097821]
[1733412232006,0.2425078,102270.0,102230.0,0.19748605]
[1733412232247,0.10140985,102270.0,102250.0,0.097798]
[1733412232486,0.0017338,102270.0,102250.0,0.097798]
[1733412232728,0.03340984,102270.0,102230.0,0.09967605]
[1733412232992,0.19614051,102270.0,102240.0,0.097808]
[1733412233231,0.00057751,102270.0,102250.0,0.195592]
[1733412233444,0.00057751,102270.0,102260.0,0.097789]
[1733412233923,0.00057751,102270.0,102260.0,0.19746505]
[1733412234133,0.00057751,102270.0,102260.0,0.22046505]
[1733412234408,0.00057751,102270.0,102260.0,0.37046505]
[1733412234905,0.00057751,102270.0,102260.0,0.173]
[1733412235122,0.00057751,102270.0,102260.0,0.37046505]
[1733412236854,0.00057751,102270.0,102260.0,0.270789]
[1733412237108,0.00057751,102270.0,102260.0,0.37046505]
[1733412237334,0.00057751,102270.0,102260.0,0.27267605]
[1733412237592,0.00057751,102270.0,102260.0,0.173]
[1733412237833,0.536,102280.0,102260.0,0.173]
[1733412238058,0.0017338,102270.0,102260.0,0.17357751]
[1733412238277,0.0017338,102270.0,102260.0,0.37104256]
[1733412239511,0.0017338,102270.0,102260.0,0.27136651]
[1733412240192,0.0377338,102290.0,102270.0,0.097772]
[1733412240419,0.390986,102310.0,102270.0,0.19744805]
[1733412240643,0.195504,102300.0,102270.0,0.19745005]
[1733412240861,0.39102,102300.0,102270.0,0.19745005]
[1733412241079,0.195504,102300.0,102270.0,0.29522305]
[1733412241331,0.49069605,102300.0,102270.0,0.097773]
[1733412241559,0.390996,102310.0,102270.0,0.19744905]
[1733412241803,0.536,102300.0,102280.0,0.19744005]
[1733412242302,1.02673305,102290.0,102260.0,0.17357751]
[1733412242545,0.19556,102270.0,102260.0,0.17357751]
[1733412242807,0.46799999,102270.0,102260.0,0.27325356]
[1733412243057,0.46799999,102270.0,102260.0,0.37104256]
[1733412243280,0.46799999,102290.0,102280.0,0.09777]
[1733412243495,0.46799999,102290.0,102280.0,0.19744605]
[1733412243983,0.46799999,102310.0,102300.0,0.097751]
[1733412244233,0.46799999,102310.0,102300.0,0.19742705]
[1733412244736,0.46799999,102310.0,102300.0,0.09967605]
[1733412244954,0.46799999,102310.0,102300.0,0.19742705]
[1733412245429,0.0017452,102320.0,102300.0,0.19759646]
[1733412245689,0.0017452,102320.0,102300.0,0.00017641]
[1733412245924,0.46974519,102320.0,102300.0,0.09985246]
[1733412246148,0.46974519,102320.0,102300.0,0.19759646]
[1733412246386,0.46974519,102320.0,102300.0,0.30732313]
[1733412246639,0.46974519,102320.0,102310.0,0.097742]
[1733412247859,0.40174518,102330.0,102310.0,0.29515905]
[1733412248103,0.40174518,102330.0,102310.0,0.19741705]
[1733412248342,0.40174518,102330.0,102310.0,0.29515305]
[1733412248558,0.59719118,102330.0,102310.0,0.19741205]
[1733412248805,0.59722918,102310.0,102300.0,0.00017641]
[1733412249092,0.40174518,102310.0,102300.0,0.00017641]
[1733412250345,0.40174518,102310.0,102300.0,0.09985246]
[1733412250585,0.40174518,102310.0,102300.0,0.19858097]
[1733412250832,0.40174518,102310.0,102300.0,0.19760346]
[1733412251274,0.40174518,102360.0,102310.0,0.097742]
[1733412251534,0.40174518,102360.0,102340.0,0.195416]
[1733412251768,0.40174518,102350.0,102340.0,0.19738005]
[1733412251997,0.40174518,102350.0,102340.0,0.19738905]
[1733412252230,0.40174518,102350.0,102340.0,0.09967605]
[1733412252448,0.40174518,102350.0,102340.0,0.19738905]
[1733412252676,0.40074518,102350.0,102340.0,0.19738905]
[1733412252976,0.33274517,102350.0,102340.0,0.00017641]
[1733412253185,0.390798,102360.0,102340.0,0.00017641]
[1733412253186,0.195395,102360.0,102340.0,0.00017641]
[1733412253412,0.536,102350.0,102340.0,0.00017641]
[1733412253675,0.195407,102350.0,102340.0,0.00017641]
[1733412253894,0.731392,102360.0,102340.0,0.09985246]
[1733412254140,0.731392,102360.0,102340.0,0.19756546]
[1733412254358,0.535,102360.0,102340.0,0.29527046]
[1733412254576,0.535,102360.0,102340.0,0.29526446]
[1733412255048,0.925779,102360.0,102340.0,0.09985246]
[1733412255296,0.925779,102360.0,102340.0,0.00017641]
[1733412255542,0.924779,102360.0,102340.0,0.00017641]
[1733412255789,0.195407,102350.0,102340.0,0.00017641]
[1733412256007,0.92479,102360.0,102340.0,0.00017641]
[1733412256247,0.729389,102360.0,102340.0,0.19756446]
[1733412256496,0.534,102360.0,102340.0,0.29527046]
[1733412256765,0.534,102360.0,102350.0,0.097703]
[1733412257021,0.345376,102370.0,102350.0,0.29507405]
[1733412257022,0.683,102370.0,102350.0,0.29507405]
[1733412257263,0.683,102370.0,102360.0,0.097694]
[1733412257477,0.683,102370.0,102360.0,0.19737005]
[1733412257743,0.13144247,102370.0,102360.0,0.19737005]
[1733412257971,0.536,102390.0,102380.0,0.097675]
[1733412258186,0.536,102390.0,102380.0,0.19735105]
[1733412258713,0.536,102400.0,102390.0,0.097665]
[1733412258989,0.536,102410.0,102400.0,0.097656]
[1733412259211,0.535,102410.0,102400.0,0.19733205]
[1733412259429,0.00232557,102420.0,102380.0,0.11735904]
[1733412259650,0.536,102410.0,102390.0,0.09967605]
[1733412259873,0.536,102400.0,102390.0,0.09967605]
[1733412260123,0.536,102400.0,102390.0,0.19734105]
[1733412260625,0.53832557,102420.0,102410.0,0.097646]
[1733412260860,0.195313,102400.0,102380.0,0.19315404]
[1733412261101,0.195342,102390.0,102380.0,0.09967605]
[1733412261346,0.00232557,102420.0,102390.0,0.1253]
[1733412261592,0.00232557,102420.0,102400.0,0.09967605]
[1733412261593,0.195307,102410.0,102400.0,0.09967605]
[1733412261852,0.19761057,102420.0,102400.0,0.09967605]
[1733412262108,0.19761057,102420.0,102390.0,0.097664]
[1733412262109,0.195315,102400.0,102370.0,0.0191508]
[1733412262320,0.390641,102400.0,102380.0,0.19735005]
[1733412262538,0.195304,102410.0,102380.0,0.09967605]
[1733412262781,0.195304,102410.0,102380.0,0.29502005]
[1733412263022,0.390614,102410.0,102380.0,0.19734505]
[1733412263235,0.195325,102400.0,102380.0,0.09967605]
[1733412263456,0.390653,102400.0,102370.0,0.0191508]
[1733412263681,0.390653,102400.0,102360.0,0.195373]
[1733412263682,0.29502205,102390.0,102350.0,0.10361756]
[1733412263909,0.195341,102390.0,102360.0,0.09967605]
[1733412264148,0.54703351,102380.0,102350.0,0.01982423]
[1733412264425,0.54703351,102380.0,102300.0,0.1484]
[1733412264426,0.195418,102350.0,102310.0,0.097736]
[1733412264663,3.1703293,102380.0,102310.0,0.097736]
[1733412264664,0.195362,102380.0,102340.0,0.097711]
[1733412264893,0.19537,102370.0,102350.0,0.19737705]
[1733412265138,0.19537,102370.0,102350.0,0.09967605]
[1733412265139,0.39074,102370.0,102350.0,0.09967605]
[1733412265365,0.0037007,102370.0,102350.0,0.10065308]
[1733412265618,0.0037007,102370.0,102360.0,0.09967605]
[1733412265856,0.0037007,102370.0,102360.0,0.19834695]
[1733412266082,0.0027007,102370.0,102360.0,0.19737005]
[1733412267494,0.0027007,102370.0,102360.0,0.21646229]
[1733412267716,0.59733146,102400.0,102360.0,0.23107589]
[1733412267939,0.44732046,102400.0,102370.0,0.097677]
[1733412268274,0.25200746,102380.0,102360.0,0.01909224]
[1733412268447,0.195388,102360.0,102350.0,0.00017641]
[1733412268695,0.44739546,102360.0,102350.0,0.01922959]
[1733412269200,0.44720739,102360.0,102350.0,0.00017641]
[1733412269451,0.195422,102350.0,102310.0,0.097736]
[1733412269680,0.536,102400.0,102340.0,0.19738905]
[1733412269896,0.44721939,102360.0,102340.0,0.09967605]
[1733412270134,0.1954,102360.0,102340.0,0.09967605]
[1733412270584,0.0828,102380.0,102340.0,0.19738405]
[1733412270824,0.0828,102380.0,102340.0,0.09967605]
[1733412271068,0.195407,102350.0,102310.0,0.277469]
[1733412271290,0.29504805,102370.0,102320.0,0.19740205]
[1733412271513,0.195408,102350.0,102320.0,0.19740205]
[1733412271760,0.195402,102360.0,102320.0,0.29512905]
[1733412272006,0.390805,102360.0,102320.0,0.29512905]
[1733412272257,0.1954,102360.0,102330.0,0.19739805]
[1733412272507,0.390798,102360.0,102330.0,0.29511505]
[1733412272745,0.390796,102360.0,102330.0,0.29511505]
[1733412273195,0.586198,102360.0,102330.0,0.19739305]
[1733412273518,0.586198,102360.0,102320.0,0.0192211]
[1733412273519,0.390828,102350.0,102320.0,0.0192211]
[1733412273725,0.731437,102340.0,102320.0,0.0192211]
[1733412273978,0.731427,102340.0,102310.0,0.097741]
[1733412274213,0.5795,102370.0,102320.0,0.19740105]
[1733412274461,0.390842,102350.0,102320.0,0.09967605]
[1733412274692,0.390866,102340.0,102310.0,0.12674593]
[1733412274916,0.195456,102330.0,102310.0,0.11881515]
[1733412275175,0.390914,102330.0,102310.0,0.11898706]
[1733412275387,0.195465,102320.0,102310.0,0.01931101]
[1733412275859,0.168865,102320.0,102310.0,0.00017191]
[1733412276334,0.195435,102340.0,102310.0,0.09984796]
[1733412276570,0.49055205,102340.0,102310.0,0.10789271]
[1733412276786,0.390876,102340.0,102310.0,0.29984176]
[1733412277010,0.536,102360.0,102320.0,0.09967605]
[1733412277256,0.195409,102350.0,102330.0,0.097717]
[1733412277508,0.390827,102350.0,102330.0,0.09967605]
[1733412277765,0.731402,102360.0,102330.0,0.2136486]
[1733412277999,0.195384,102370.0,102330.0,0.1159316]
[1733412278218,0.390766,102370.0,102340.0,0.19738105]
[1733412278476,0.59989999,102380.0,102350.0,0.097695]
[1733412278477,0.195361,102380.0,102350.0,0.097695]
[1733412278726,0.195361,102380.0,102350.0,0.29506705]
[1733412278965,0.195361,102380.0,102360.0,0.097693]
[1733412279434,0.09967605,102370.0,102330.0,0.0198164]
[1733412279703,0.09967605,102370.0,102230.0,0.097817]
[1733412279704,0.195583,102260.0,102230.0,0.097817]
[1733412279916,0.195602,102250.0,102210.0,0.097836]
[1733412280140,0.195602,102250.0,102210.0,0.11506377]
[1733412280376,0.0459,102270.0,102220.0,0.097824]
[1733412280624,0.0805,102280.0,102240.0,0.097801]
[1733412280838,0.28701298,102260.0,102250.0,0.09967605]
[1733412281050,0.28701298,102260.0,102250.0,0.19747505]
[1733412281349,0.195536,102290.0,102250.0,0.19747505]
[1733412281350,0.28701298,102270.0,102250.0,0.29526705]
[1733412281589,0.75890264,102260.0,102250.0,0.31469864]
[1733412281818,0.29981339,102270.0,102260.0,0.097789]
[1733412282070,0.21414319,102270.0,102260.0,0.19746505]
[1733412282286,0.11414319,102270.0,102260.0,0.19746505]
[1733412282539,0.11414319,102270.0,102250.0,0.01943159]
[1733412282540,0.195579,102260.0,102250.0,0.01943159]
[1733412282752,0.47679306,102260.0,102240.0,0.00057751]
[1733412283004,0.08560191,102250.0,102240.0,0.00057751]
[1733412283224,0.08560191,102250.0,102240.0,0.19806256]
[1733412283475,0.08560252,102260.0,102240.0,0.19805556]
[1733412283695,0.08560252,102260.0,102250.0,0.09967605]
[1733412283940,0.08560252,102260.0,102250.0,0.19747505]
[1733412284390,0.08560252,102270.0,102250.0,0.29527405]
[1733412284615,0.08560252,102280.0,102260.0,0.097789]
[1733412284853,0.04694261,102220.0,102140.0,0.097899]
[1733412285068,0.04694261,102140.0,102120.0,0.1138389]
[1733412285296,0.1251,102180.0,102120.0,0.18372665]
[1733412285523,0.1,102190.0,102160.0,0.097885]
[1733412285748,0.62047435,102120.0,102110.0,0.10464636]
[1733412286003,0.395694,102200.0,102170.0,0.097868]
[1733412286217,0.1,102190.0,102160.0,0.097884]
[1733412286465,0.2,102200.0,102170.0,0.19755105]
[1733412286691,0.1,102200.0,102170.0,0.29541905]
[1733412286910,0.1,102200.0,102180.0,0.09967605]
[1733412286911,0.00057738,102200.0,102180.0,0.09967605]
[1733412287139,0.1,102220.0,102190.0,0.097847]
[1733412287395,0.1,102220.0,102190.0,0.19850142]
[1733412287613,0.491307,102230.0,102200.0,0.097845]
[1733412287842,0.32732804,102230.0,102200.0,0.097845]
[1733412288085,0.32765099,102230.0,102200.0,0.097845]
[1733412288329,0.52330399,102230.0,102200.0,0.097845]
[1733412288773,0.32765099,102230.0,102200.0,0.29536805]
[1733412288998,0.32765099,102230.0,102200.0,0.2963464]
[1733412289253,0.32765099,102230.0,102200.0,0.3941854]
[1733412289470,0.13199999,102220.0,102180.0,0.09843638]
[1733412289692,0.52332699,102220.0,102190.0,0.19753205]
[1733412290375,0.1,102220.0,102200.0,0.097846]
[1733412290592,0.40261799,102240.0,102210.0,0.19751005]
[1733412290815,0.20699999,102240.0,102220.0,0.097828]
[1733412291041,0.27380399,102250.0,102220.0,0.097828]
[1733412291294,0.17687604,102250.0,102220.0,0.19663221]
[1733412291515,0.1,102250.0,102230.0,0.097818]
[1733412291731,0.42317399,102260.0,102220.0,0.09967605]
[1733412291732,0.1,102240.0,102220.0,0.09967605]
[1733412291979,0.1,102250.0,102220.0,0.19749605]
[1733412292187,0.1,102250.0,102230.0,0.097811]
[1733412292855,0.03199999,102250.0,102230.0,0.19660006]
[1733412293071,0.13199999,102260.0,102240.0,0.097809]
[1733412294030,0.13199999,102260.0,102230.0,0.195628]
[1733412294251,0.42727504,102250.0,102220.0,0.00017659]
[1733412294686,0.03199999,102250.0,102220.0,0.19864982]
[1733412294902,0.03199999,102250.0,102230.0,0.097809]
[1733412295554,0.03199999,102250.0,102230.0,0.195627]
[1733412296000,0.03199999,102250.0,102230.0,0.194127]
[1733412296480,0.03203999,102250.0,102230.0,0.194121]
[1733412296761,4e-05,102250.0,102240.0,0.09878701]
[1733412296974,4e-05,102250.0,102240.0,0.19846306]
[1733412297203,0.13203999,102250.0,102220.0,0.19581859]
[1733412297421,0.13203999,102250.0,102230.0,0.097818]
[1733412297671,0.32765099,102250.0,102220.0,0.19767964]
[1733412297884,0.32765099,102250.0,102230.0,0.097818]
[1733412297885,0.06403998,102250.0,102230.0,0.097818]
[1733412298140,0.06577438,102250.0,102220.0,0.29550164]
[1733412298361,0.0017344,102250.0,102230.0,0.19660808]
[1733412298575,0.0017344,102250.0,102240.0,0.097809]
[1733412299316,0.0017344,102250.0,102220.0,0.09799759]
[1733412299521,0.0017344,102250.0,102230.0,0.09781]
[1733412299742,0.0017344,102250.0,102230.0,0.195627]
[1733412299961,0.0017344,102250.0,102230.0,0.195622]
[1733412300148,0.0017344,102250.0,102240.0,0.097809]
[1733412300396,0.0017344,102250.0,102230.0,0.195622]